bitfinex-derivatives/quotes_BTCF0:USTF0_20251216
["timestamp","ask_amount","ask_price","bid_price","bid_amount"]
[1765907310506,0.2105981,87217.0,87216.0,0.21290179]
[1765907310702,0.2105981,87217.0,87216.0,0.10619179]
[1765907311094,0.2105981,87217.0,87216.0,0.00017179]
[1765907311403,0.5713981,87217.0,87216.0,0.00017179]
[1765907311800,0.5713981,87217.0,87216.0,0.21290179]
[1765907312499,0.5723981,87217.0,87216.0,0.21290179]
[1765907313102,0.5723981,87217.0,87216.0,0.21390179]
[1765907313290,0.20013,87217.0,87216.0,0.21390179]
[1765907314090,0.19913,87217.0,87216.0,0.21390179]
[1765907315293,0.19913,87217.0,87216.0,0.21290179]
[1765907315497,0.20013,87217.0,87216.0,0.21290179]
[1765907315897,0.2115981,87217.0,87216.0,0.21290179]
[1765907316202,0.2105981,87217.0,87216.0,0.21390179]
[1765907316992,0.2105981,87217.0,87216.0,0.00117179]
[1765907317500,0.2105981,87217.0,87216.0,0.00217179]
[1765907317705,0.5713981,87217.0,87216.0,0.00217179]
[1765907318101,0.59697201,87217.0,87216.0,0.00217179]
[1765907318406,0.59697201,87217.0,87216.0,0.00117179]
[1765907318794,0.59897201,87217.0,87216.0,0.00117179]
[1765907319005,0.60097201,87217.0,87216.0,0.00117179]
[1765907319800,0.59897201,87217.0,87216.0,0.00017179]
[1765907319995,0.60097201,87217.0,87216.0,0.00117179]
[1765907320400,0.59897201,87217.0,87216.0,0.00117179]
[1765907320600,0.60097201,87217.0,87216.0,0.00117179]
[1765907321105,0.59897201,87217.0,87216.0,0.00117179]
[1765907321414,0.60097201,87217.0,87216.0,0.00117179]
[1765907322195,0.59897201,87217.0,87216.0,0.00017179]
[1765907323110,0.5733981,87217.0,87216.0,0.00017179]
[1765907323411,0.5733981,87217.0,87216.0,0.22852179]
[1765907323703,0.5753981,87217.0,87216.0,0.22852179]
[1765907325403,0.5753981,87217.0,87216.0,0.00117179]
[1765907326110,0.2364097,87205.0,87204.0,0.2388197]
[1765907326906,0.2364097,87205.0,87203.0,0.5996199]
[1765907326907,0.22494,87204.0,87203.0,0.5996199]
[1765907327212,0.1127,87204.0,87203.0,0.5996199]
[1765907328609,0.1127,87204.0,87203.0,0.6006199]
[1765907328610,0.22494,87204.0,87203.0,0.6006199]
[1765907329805,0.22494,87204.0,87203.0,0.6016199]
[1765907330213,0.22494,87204.0,87203.0,0.6006199]
[1765907330513,0.22494,87204.0,87203.0,0.6016199]
[1765907331204,0.22494,87204.0,87203.0,0.6006199]
[1765907331406,0.22494,87204.0,87203.0,0.6016199]
[1765907332114,0.22494,87204.0,87203.0,0.59015]
[1765907332809,0.22494,87204.0,87203.0,0.58815]
[1765907333005,0.22494,87204.0,87203.0,0.001]
[1765907333404,0.11224,87204.0,87196.0,0.00017193]
[1765907333609,0.2364108,87197.0,87196.0,0.00017193]
[1765907335411,0.2364108,87197.0,87196.0,0.00117193]
[1765907335812,0.2364108,87197.0,87196.0,0.00217193]
[1765907337023,0.1127,87197.0,87196.0,0.22952193]
[1765907337220,0.22494,87197.0,87196.0,0.22952193]
[1765907341521,0.11287193,87205.0,87204.0,0.2388198]
[1765907341723,0.00017193,87205.0,87204.0,0.2388198]
[1765907341921,0.22511193,87205.0,87204.0,0.22735]
[1765907342324,0.00017193,87205.0,87204.0,0.58815]
[1765907342518,0.1241678,87220.0,87219.0,0.22735]
[1765907342719,0.2364078,87220.0,87219.0,0.22735]
[1765907343025,0.22494,87212.0,87211.0,0.5996188]
[1765907343428,0.1241682,87217.0,87216.0,0.22735]
[1765907343632,0.22494,87217.0,87216.0,0.22735]
[1765907344317,0.3608,87228.0,87227.0,0.20872]
[1765907344522,0.2219956,87237.0,87236.0,0.20872]
[1765907346222,0.21053,87229.0,87228.0,0.20889193]
[1765907346427,0.10334,87229.0,87228.0,0.20889193]
[1765907347130,0.21053,87229.0,87228.0,0.20889193]
[1765907347833,0.21053,87229.0,87228.0,0.20989193]
[1765907348041,0.10334,87229.0,87228.0,0.20989193]
[1765907348235,0.21053,87229.0,87228.0,0.21189193]
[1765907348931,0.21053,87229.0,87228.0,0.21089193]
[1765907354542,0.21053,87229.0,87228.0,0.92997193]
[1765907355544,0.21053,87229.0,87228.0,0.21089193]
[1765907355738,0.21053,87229.0,87228.0,0.00217193]
[1765907356034,0.21053,87229.0,87228.0,0.00117193]
[1765907356240,0.21153,87229.0,87228.0,0.00017193]
[1765907356836,0.21153,87229.0,87228.0,0.20889193]
[1765907357139,0.002,87229.0,87228.0,0.22035863]
[1765907357735,0.2219956,87237.0,87236.0,0.20872]
[1765907357943,0.21053,87237.0,87236.0,0.20872]
[1765907358834,0.21053,87237.0,87236.0,0.20972]
[1765907360231,0.21153,87237.0,87236.0,0.20972]
[1765907367644,0.001,87237.0,87236.0,0.20972]
[1765907368043,0.001,87237.0,87236.0,0.92868]
[1765907370737,0.3608,87239.0,87238.0,0.20872]
[1765907370936,0.00017193,87245.0,87237.0,0.0114655]
[1765907370937,0.00017193,87245.0,87244.0,0.2201846]
[1765907372236,0.00117193,87245.0,87244.0,0.2201846]
[1765907372642,0.00317193,87245.0,87244.0,0.2201846]
[1765907373050,0.21370193,87245.0,87244.0,0.2201846]
[1765907374555,0.21170193,87245.0,87244.0,0.2221846]
[1765907374850,0.21070193,87245.0,87244.0,0.2241846]
[1765907377441,0.21070193,87245.0,87244.0,0.2231846]
[1765907377644,0.21070193,87245.0,87244.0,0.003]
[1765907377843,0.23651643,87245.0,87244.0,0.003]
[1765907378254,0.23651643,87245.0,87244.0,0.001]
[1765907378556,0.23651643,87245.0,87244.0,0.002]
[1765907379050,0.20295,87236.0,87235.0,0.36273213]
[1765907379353,0.20295,87236.0,87235.0,0.20496]
[1765907380854,0.20295,87236.0,87235.0,0.20596]
[1765907381550,0.20295,87236.0,87235.0,0.20696]
[1765907387761,0.46187,87241.0,87240.0,0.26508]
[1765907387957,0.00017193,87245.0,87244.0,0.2164246]
[1765907388162,0.20312193,87245.0,87244.0,0.2164246]
[1765907389766,0.20412193,87245.0,87244.0,0.2164246]
[1765907389958,0.21558633,87245.0,87244.0,0.20496]
[1765907390153,0.20412193,87245.0,87244.0,0.20496]
[1765907390566,0.21558633,87245.0,87244.0,0.20596]
[1765907391651,0.21458633,87245.0,87244.0,0.20696]
[1765907392769,0.20312193,87245.0,87244.0,0.20696]
[1765907400167,0.20312193,87245.0,87244.0,0.10629]
[1765907400369,0.22893957,87245.0,87244.0,0.002]
[1765907401061,0.02598957,87245.0,87244.0,0.20696]
[1765907401257,0.00017193,87245.0,87244.0,0.20696]
[1765907401466,0.00117193,87245.0,87244.0,0.20596]
[1765907401871,0.20412193,87245.0,87244.0,0.20596]
[1765907402772,0.20512193,87245.0,87244.0,0.20496]
[1765907403271,0.20412193,87245.0,87244.0,0.20496]
[1765907403469,0.20412193,87245.0,87244.0,0.20596]
[1765907403677,0.22896287,87245.0,87244.0,0.001]
[1765907403976,0.22896287,87245.0,87244.0,0.19883]
[1765907404470,0.22896287,87245.0,87244.0,0.19783]
[1765907404668,0.22896287,87245.0,87244.0,0.19883]
[1765907405073,0.20312193,87245.0,87244.0,0.19883]
[1765907405276,0.2288731,87245.0,87244.0,0.19783]
[1765907405578,0.2288731,87245.0,87244.0,0.19883]
[1765907406680,0.20312193,87245.0,87244.0,0.19783]
[1765907406874,0.20312193,87245.0,87244.0,0.19883]
[1765907407075,0.22887131,87245.0,87244.0,0.19883]
[1765907407380,0.22887131,87245.0,87244.0,0.19683]
[1765907407579,0.22887131,87245.0,87244.0,0.19883]
[1765907409371,0.22887131,87245.0,87244.0,0.09707]
[1765907409568,0.22887131,87245.0,87244.0,0.19883]
[1765907410578,0.22987131,87245.0,87244.0,0.001]
[1765907410782,0.20016,87236.0,87235.0,0.36603086]
[1765907411077,0.20016,87236.0,87235.0,0.2082958]
[1765907412279,0.20016,87236.0,87235.0,0.19783]
[1765907413084,0.20016,87236.0,87235.0,0.19883]
[1765907416887,0.20016,87236.0,87235.0,0.09707]
[1765907417391,0.20016,87236.0,87235.0,0.19883]
[1765907417582,0.20016,87241.0,87240.0,0.25849]
[1765907418086,0.20016,87241.0,87240.0,0.19683]
[1765907418673,0.2116255,87237.0,87236.0,0.1065355]
[1765907418880,0.2116255,87237.0,87236.0,0.19683]
[1765907419988,0.23736776,87237.0,87236.0,0.001]
[1765907420186,0.2116265,87229.0,87220.0,0.15773506]
[1765907420387,0.59815421,87229.0,87220.0,0.15773506]
[1765907421384,0.5734265,87229.0,87220.0,0.15773506]
[1765907421783,0.5734265,87229.0,87223.0,0.0114673]
[1765907421981,0.5744265,87229.0,87228.0,0.19700193]
[1765907422591,0.5744265,87229.0,87228.0,0.00017193]
[1765907422774,0.5744265,87229.0,87228.0,0.09524193]
[1765907423097,0.5734265,87229.0,87228.0,0.00017193]
[1765907423578,0.5744265,87229.0,87228.0,0.00017193]
[1765907424178,0.5734265,87229.0,87228.0,0.00017193]
[1765907424378,0.5744265,87229.0,87228.0,0.00017193]
[1765907425490,0.5744265,87229.0,87228.0,0.19700193]
[1765907425786,0.56296,87229.0,87228.0,0.19700193]
[1765907425975,0.20216,87229.0,87228.0,0.19700193]
[1765907426180,0.002,87229.0,87228.0,0.19700193]
[1765907426375,0.001,87229.0,87228.0,0.19700193]
[1765907426591,0.002,87229.0,87228.0,0.19700193]
[1765907427274,0.001,87229.0,87228.0,0.19700193]
[1765907427476,0.001,87229.0,87228.0,0.19900193]
[1765907427986,0.20116,87229.0,87228.0,0.19900193]
[1765907428180,0.20016,87229.0,87228.0,0.19900193]
[1765907428381,0.20016,87229.0,87228.0,0.20000193]
[1765907430096,0.20016,87229.0,87228.0,0.19900193]
[1765907432891,0.20016,87229.0,87228.0,0.00217193]
[1765907433591,0.22588282,87229.0,87228.0,0.00217193]
[1765907433888,0.22588285,87229.0,87228.0,0.00217193]
[1765907434092,0.20016,87229.0,87228.0,0.00117193]
[1765907434288,0.22680254,87229.0,87228.0,0.00117193]
[1765907435091,0.22680254,87229.0,87228.0,0.00017193]
[1765907435288,0.22780254,87229.0,87228.0,0.00017193]
[1765907435699,0.22680254,87229.0,87228.0,0.00017193]
[1765907435894,0.22880254,87229.0,87228.0,0.00017193]
[1765907436100,0.22980254,87229.0,87228.0,0.00117193]
[1765907436799,0.22780254,87229.0,87228.0,0.00017193]
[1765907437096,0.22980254,87229.0,87228.0,0.00117193]
[1765907448296,0.22980254,87229.0,87228.0,0.18563193]
[1765907450410,0.20416,87229.0,87228.0,0.24309193]
[1765907451008,0.20416,87229.0,87228.0,0.18563193]
[1765907452208,0.20416,87229.0,87228.0,0.00117193]
[1765907452410,0.22981604,87229.0,87228.0,0.00117193]
[1765907454903,0.22981604,87229.0,87228.0,0.18563193]
[1765907455210,0.20416,87229.0,87228.0,0.18563193]
[1765907456903,0.20416,87229.0,87228.0,0.00117193]
[1765907457112,0.22981467,87229.0,87228.0,0.00117193]
[1765907458915,0.22981467,87229.0,87228.0,0.09492193]
[1765907459512,0.22981467,87229.0,87228.0,0.18563193]
[1765907460815,0.22981467,87229.0,87228.0,0.24309193]
[1765907461208,0.22981467,87229.0,87228.0,0.18563193]
[1765907462817,0.22981467,87229.0,87228.0,0.00117193]
[1765907463319,0.22981467,87229.0,87228.0,0.09492193]
[1765907463715,0.22981467,87229.0,87228.0,0.00117193]
[1765907464714,0.1869193,87208.0,87207.0,0.54167]
[1765907464921,0.17545,87208.0,87207.0,0.54167]
[1765907465120,0.099619,87211.0,87210.0,0.23449]
[1765907465321,0.186919,87211.0,87210.0,0.23449]
[1765907466411,0.54788983,87219.0,87218.0,0.18087]
[1765907466615,0.36097193,87219.0,87218.0,0.18087]
[1765907467426,0.00017193,87219.0,87218.0,0.18087]
[1765907467621,0.00117193,87219.0,87218.0,0.18087]
[1765907468215,0.00217193,87219.0,87218.0,0.18087]
[1765907468611,0.00117193,87219.0,87218.0,0.18087]
[1765907468817,0.00117193,87219.0,87218.0,0.18187]
[1765907469116,0.0703759,87234.0,87230.0,0.18087]
[1765907469117,0.5477163,87231.0,87230.0,0.18087]
[1765907469318,0.57365778,87231.0,87230.0,0.18087]
[1765907469819,0.1869176,87221.0,87220.0,0.33869959]
[1765907470021,0.1869176,87221.0,87220.0,0.18087]
[1765907471229,0.1869176,87221.0,87220.0,0.18287]
[1765907472828,0.0996176,87221.0,87220.0,0.1943377]
[1765907473024,0.1869176,87221.0,87220.0,0.1943377]
[1765907473418,0.17545,87221.0,87220.0,0.1943377]
[1765907473620,0.00017193,87229.0,87220.0,0.1943377]
[1765907473621,0.00017193,87229.0,87228.0,0.2459567]
[1765907475223,0.00117193,87229.0,87228.0,0.2459567]
[1765907475835,0.00217193,87229.0,87228.0,0.2459567]
[1765907476734,0.00017193,87229.0,87228.0,0.2489567]
[1765907477231,0.00017193,87229.0,87228.0,0.2479567]
[1765907477431,0.00017193,87229.0,87228.0,0.2489567]
[1765907477732,0.17562193,87229.0,87228.0,0.18387]
[1765907478430,0.17562193,87229.0,87228.0,0.09459]
[1765907478620,0.20156223,87229.0,87228.0,0.003]
[1765907479029,0.1869183,87216.0,87215.0,0.54167]
[1765907479534,0.1869183,87216.0,87215.0,0.18087]
[1765907480826,0.1879183,87216.0,87215.0,0.18087]
[1765907481226,0.1889183,87216.0,87215.0,0.18087]
[1765907481730,0.1016183,87216.0,87215.0,0.18087]
[1765907481930,0.1889183,87216.0,87215.0,0.18087]
[1765907483539,0.1869183,87216.0,87215.0,0.18087]
[1765907483832,0.1869186,87213.0,87212.0,0.00017193]
[1765907484628,0.21284667,87213.0,87212.0,0.00017193]
[1765907485225,0.17545,87195.0,87194.0,0.18087]
[1765907486640,0.17545,87195.0,87194.0,0.18187]
[1765907486838,0.17545,87195.0,87194.0,0.18287]
[1765907490437,0.17545,87195.0,87194.0,0.09359]
[1765907490741,0.17545,87195.0,87194.0,0.18287]
[1765907494032,0.19174193,87203.0,87202.0,0.17503]
[1765907495147,0.189211,87195.0,87194.0,0.17751]
[1765907495347,0.189211,87195.0,87194.0,0.17651]
[1765907496436,0.189211,87195.0,87194.0,0.17751]
[1765907497452,0.189211,87195.0,87194.0,0.002]
[1765907497747,0.17774,87195.0,87194.0,0.17851]
[1765907502338,0.1892106,87199.0,87198.0,0.23031]
[1765907502650,0.17774,87199.0,87198.0,0.23031]
[1765907503742,0.00017193,87203.0,87202.0,0.17651]
[1765907504250,0.00017193,87203.0,87202.0,0.53731]
[1765907505248,0.1892075,87222.0,87221.0,0.17651]
[1765907505657,0.08616,87222.0,87221.0,0.17651]
[1765907505852,0.5500072,87225.0,87224.0,0.17651]
[1765907506050,0.17774,87225.0,87224.0,0.17651]
[1765907507642,0.17874,87225.0,87224.0,0.17651]
[1765907507949,0.17974,87225.0,87224.0,0.17651]
[1765907508350,0.17874,87225.0,87224.0,0.17651]
[1765907510853,0.17774,87225.0,87224.0,0.17751]
[1765907511247,0.17774,87225.0,87224.0,0.17851]
[1765907511758,0.17774,87225.0,87224.0,0.17651]
[1765907517854,0.17874,87225.0,87224.0,0.17651]
[1765907518254,0.17774,87220.0,87219.0,0.5487779]
[1765907519250,0.08716,87225.0,87224.0,0.1879772]
[1765907519455,0.17774,87225.0,87224.0,0.1879772]
[1765907519660,0.08716,87225.0,87224.0,0.1879772]
[1765907520255,0.001,87225.0,87224.0,0.1879772]
[1765907520654,0.17791193,87233.0,87232.0,0.1879762]
[1765907521153,0.17791193,87233.0,87232.0,0.17651]
[1765907521851,0.2449867,87228.0,87227.0,0.53731]
[1765907522056,0.17774,87228.0,87227.0,0.5487768]
[1765907522355,0.17791193,87233.0,87232.0,0.1879762]
[1765907522561,0.17791193,87233.0,87232.0,0.17651]
[1765907523062,0.17791193,87233.0,87232.0,0.08751]
[1765907523259,0.17791193,87233.0,87232.0,0.17651]
[1765907523459,0.23352,87228.0,87227.0,0.53731]
[1765907524656,0.23452,87228.0,87227.0,0.53731]
[1765907524862,0.23452,87228.0,87227.0,0.44831]
[1765907525063,0.17874,87228.0,87227.0,0.53379]
[1765907525257,0.08616,87228.0,87227.0,0.53379]
[1765907525465,0.001,87228.0,87227.0,0.53379]
[1765907526576,0.13838,87246.0,87245.0,0.17552]
[1765907526870,0.16977,87246.0,87245.0,0.1869844]
[1765907527556,0.16977,87246.0,87245.0,0.1879844]
[1765907528256,0.16977,87246.0,87245.0,0.1889844]
[1765907529367,0.16994193,87254.0,87253.0,0.1869834]
[1765907529667,0.00017193,87254.0,87253.0,0.1869834]
[1765907529963,0.00027928,87258.0,87257.0,0.1869829]
[1765907530266,0.00027928,87258.0,87257.0,0.5477829]
[1765907531056,0.00027928,87258.0,87257.0,0.5497829]
[1765907531368,0.16994193,87266.0,87265.0,0.17552]
[1765907531970,0.16977,87261.0,87260.0,0.17552]
[1765907532574,0.16977,87258.0,87257.0,0.45401193]
[1765907532776,0.16977,87258.0,87257.0,0.09321193]
[1765907533165,0.16977,87258.0,87257.0,0.17669193]
[1765907533871,0.17077,87258.0,87257.0,0.17569193]
[1765907534062,0.1822327,87258.0,87257.0,0.00017193]
[1765907534457,0.56788973,87258.0,87257.0,0.00017193]
[1765907535363,0.56788973,87258.0,87257.0,0.09021193]
[1765907535563,0.56788973,87258.0,87257.0,0.00017193]
[1765907536167,0.56888973,87258.0,87257.0,0.00017193]
[1765907536363,0.57088973,87258.0,87257.0,0.00017193]
[1765907536774,0.57088973,87258.0,87257.0,0.17569193]
[1765907537074,0.56788973,87258.0,87257.0,0.17569193]
[1765907537272,0.57088973,87258.0,87257.0,0.00117193]
[1765907537674,0.56988973,87258.0,87257.0,0.00117193]
[1765907537972,0.57088973,87258.0,87257.0,0.00117193]
[1765907538575,0.56888973,87258.0,87257.0,0.00017193]
[1765907538775,0.56988973,87258.0,87257.0,0.00017193]
[1765907539173,0.56988973,87258.0,87257.0,0.17569193]
[1765907539474,0.55842703,87258.0,87257.0,0.17569193]
[1765907539670,0.002,87258.0,87257.0,0.53649193]
[1765907540262,0.001,87258.0,87257.0,0.53649193]
[1765907540471,0.00017193,87266.0,87265.0,0.17552]
[1765907540675,0.00017193,87266.0,87265.0,0.5477818]
[1765907540871,0.08734193,87266.0,87265.0,0.5477818]
[1765907541077,0.16994193,87266.0,87265.0,0.5477818]
[1765907541478,0.16994193,87266.0,87265.0,0.55938811]
[1765907542570,0.16994193,87266.0,87265.0,0.56038811]
[1765907543066,0.16994193,87266.0,87265.0,0.5497818]
[1765907543486,0.16994193,87266.0,87265.0,0.56095333]
[1765907543671,0.08734193,87266.0,87265.0,0.56095333]
[1765907543989,0.00017193,87266.0,87265.0,0.56095333]
[1765907544275,0.09863,87279.0,87278.0,0.17552]
[1765907544586,0.16977,87279.0,87278.0,0.17552]
[1765907544879,0.08717,87279.0,87278.0,0.17552]
[1765907545383,0.08917,87279.0,87278.0,0.17552]
[1765907545568,0.17177,87279.0,87278.0,0.17552]
[1765907545769,0.003,87279.0,87278.0,0.17552]
[1765907547584,0.17277,87279.0,87278.0,0.17552]
[1765907548490,0.17077,87279.0,87278.0,0.17652]
[1765907548990,0.17077,87279.0,87278.0,0.17552]
[1765907549192,0.16977,87279.0,87278.0,0.17552]
[1765907550277,0.16977,87270.0,87269.0,0.15776492]
[1765907550475,0.16977,87266.0,87265.0,0.53632]
[1765907550689,0.16977,87266.0,87265.0,0.17552]
[1765907552788,0.16977,87273.0,87272.0,0.17552]
[1765907552980,0.16977,87279.0,87278.0,0.17552]
[1765907553183,0.4594297,87282.0,87281.0,0.17552]
[1765907553388,0.5420297,87282.0,87281.0,0.17552]
[1765907555295,0.08214,87282.0,87281.0,0.17552]
[1765907555589,0.3608,87290.0,87276.0,0.05414]
[1765907555590,0.3608,87290.0,87286.0,0.1870091]
[1765907555777,0.08225273,87287.0,87286.0,0.1870091]
[1765907555977,0.16998273,87287.0,87286.0,0.1870091]
[1765907556188,0.00011273,87287.0,87286.0,0.1870091]
[1765907556384,0.16998273,87287.0,87286.0,0.17555]
[1765907556792,0.16987,87282.0,87281.0,0.09083]
[1765907556991,0.1813296,87282.0,87281.0,0.17655]
[1765907557386,0.08225273,87287.0,87286.0,0.17555]
[1765907557696,0.09371163,87287.0,87286.0,0.17555]
[1765907557896,0.18144163,87287.0,87286.0,0.17555]
[1765907558394,0.20726585,87287.0,87286.0,0.17555]
[1765907558798,0.20826585,87287.0,87286.0,0.17655]
[1765907558990,0.20826585,87287.0,87286.0,0.001]
[1765907559191,0.16987,87280.0,87279.0,0.1870099]
[1765907559898,0.1813298,87280.0,87279.0,0.1870099]
[1765907560087,0.1813298,87280.0,87279.0,0.17555]
[1765907560495,0.16987,87280.0,87279.0,0.17655]
[1765907560895,0.08214,87280.0,87279.0,0.17655]
[1765907561094,0.08214,87280.0,87279.0,0.17755]
[1765907562398,0.16998273,87287.0,87286.0,0.17555]
[1765907562907,0.00011273,87287.0,87286.0,0.17555]
[1765907563595,0.00111273,87287.0,87286.0,0.17555]
[1765907564196,0.00211273,87287.0,87286.0,0.17555]
[1765907564587,0.17216102,87298.0,87297.0,0.1870076]
[1765907564895,0.19799538,87298.0,87297.0,0.1870076]
[1765907565194,0.19799538,87298.0,87297.0,0.17555]
[1765907565793,0.19799538,87298.0,87297.0,0.08983]
[1765907566299,0.19899538,87298.0,87297.0,0.08983]
[1765907566802,0.1813287,87289.0,87288.0,0.1870087]
[1765907567005,0.1813287,87289.0,87288.0,0.17555]
[1765907567497,0.16987,87280.0,87279.0,0.1870099]
[1765907567999,0.08214,87280.0,87279.0,0.1870099]
[1765907568397,0.1813289,87288.0,87287.0,0.17555]
[1765907568594,0.20719608,87288.0,87287.0,0.17555]
[1765907569504,0.16987,87280.0,87279.0,0.1880099]
[1765907569806,0.16987,87280.0,87279.0,0.1870099]
[1765907570297,0.19575945,87280.0,87279.0,0.1880099]
[1765907570889,0.19575945,87280.0,87279.0,0.1870099]
[1765907571103,0.19575945,87280.0,87279.0,0.1880099]
[1765907571402,0.3608,87289.0,87283.0,0.22675]
[1765907571403,0.1813294,87284.0,87283.0,0.22675]
[1765907571604,0.20722062,87284.0,87283.0,0.17555]
[1765907572201,0.19576122,87284.0,87283.0,0.22675]
[1765907572600,0.20722052,87284.0,87283.0,0.17555]
[1765907573501,0.20822052,87284.0,87283.0,0.17555]
[1765907574003,0.19676122,87284.0,87283.0,0.17555]
[1765907574501,0.19576122,87284.0,87283.0,0.22675]
[1765907575099,0.02589122,87284.0,87283.0,0.22675]
[1765907575696,0.17216102,87298.0,87297.0,0.17555]
[1765907575997,0.19808254,87298.0,87297.0,0.22675]
[1765907576194,0.19808254,87298.0,87297.0,0.23809706]
[1765907576700,0.11035254,87298.0,87297.0,0.23809706]
[1765907577090,0.02821254,87298.0,87297.0,0.23809706]
[1765907577801,0.02821254,87298.0,87297.0,0.23909706]
[1765907577997,0.02821254,87298.0,87297.0,0.24009706]
[1765907578398,0.00229102,87298.0,87297.0,0.23909706]
[1765907578601,0.17216102,87298.0,87297.0,0.17755]
[1765907579202,0.55887238,87298.0,87297.0,0.002]
[1765907580110,0.55887238,87298.0,87297.0,0.001]
[1765907580408,0.16987,87279.0,87278.0,0.00017193]
[1765907580606,0.16987,87279.0,87278.0,0.17572193]
[1765907581599,0.16987,87279.0,87278.0,0.17672193]
[1765907582000,0.16987,87279.0,87278.0,0.17572193]
[1765907582204,0.16987,87279.0,87278.0,0.17672193]
[1765907582404,0.16987,87279.0,87278.0,0.00117193]
[1765907582601,0.55658224,87279.0,87278.0,0.00117193]
[1765907583007,0.16987,87259.0,87258.0,0.17555]
[1765907583307,0.16987,87247.0,87246.0,0.53635]
[1765907583511,0.16987,87247.0,87246.0,0.17555]
[1765907584101,0.19586618,87247.0,87246.0,0.17555]
[1765907584302,0.16987,87247.0,87246.0,0.17755]
[1765907584504,0.17087,87247.0,87246.0,0.17955]
[1765907585107,0.16987,87247.0,87246.0,0.17755]
[1765907585412,0.16987,87247.0,87246.0,0.17555]
[1765907586314,0.16987,87247.0,87246.0,0.08983]
[1765907587808,0.16987,87247.0,87246.0,0.17771]
[1765907588429,0.1813342,87247.0,87246.0,0.17771]
[1765907589529,0.16987,87247.0,87246.0,0.17771]
[1765907589722,0.1813342,87247.0,87246.0,0.17871]
[1765907590522,0.1813342,87247.0,87242.0,0.0114648]
[1765907590523,0.16757,87243.0,87242.0,0.1879048]
[1765907592018,0.16757,87243.0,87242.0,0.1889048]
[1765907592223,0.08454,87243.0,87242.0,0.1889048]
[1765907592828,0.16757,87243.0,87242.0,0.1889048]
[1765907593131,0.16757,87243.0,87242.0,0.1899048]
[1765907593829,0.52837,87248.0,87247.0,0.17644]
[1765907594532,0.16757,87248.0,87247.0,0.17644]
[1765907595133,0.16957,87248.0,87247.0,0.17644]
[1765907596524,0.16857,87248.0,87247.0,0.17644]
[1765907596723,0.16757,87248.0,87247.0,0.17644]
[1765907598034,0.16757,87248.0,87247.0,0.1879042]
[1765907598232,0.0001719,87255.0,87254.0,0.1879033]
[1765907598622,0.0847119,87255.0,87254.0,0.1879033]
[1765907599924,0.0847119,87255.0,87254.0,0.1889033]
[1765907600439,0.0001719,87255.0,87254.0,0.1899033]
[1765907601140,0.0001719,87255.0,87254.0,0.1889033]
[1765907601338,0.1677419,87255.0,87254.0,0.1899033]
[1765907602937,0.1677419,87255.0,87254.0,0.1889033]
[1765907603132,0.1677419,87255.0,87254.0,0.1899033]
[1765907603530,0.1677419,87255.0,87254.0,0.1889033]
[1765907603731,0.2175719,87255.0,87254.0,0.09056]
[1765907604039,0.1677419,87255.0,87254.0,0.17844]
[1765907604239,0.5813419,87255.0,87254.0,0.002]
[1765907604826,0.5813419,87255.0,87254.0,0.001]
[1765907605943,0.16757,87239.0,87238.0,0.18807733]
[1765907607241,0.16757,87239.0,87238.0,0.18907733]
[1765907607644,0.5890841,87248.0,87247.0,0.17644]
[1765907608233,0.52837,87248.0,87247.0,0.17644]
[1765907608638,0.58117,87248.0,87247.0,0.17644]
[1765907610344,0.58317,87248.0,87247.0,0.17644]
[1765907610845,0.58217,87248.0,87247.0,0.17644]
[1765907611044,0.58117,87248.0,87247.0,0.17644]
[1765907611540,0.5400051,87255.0,87254.0,0.1879033]
[1765907611746,0.47150634,87255.0,87254.0,0.1879033]
[1765907612037,0.4455119,87255.0,87254.0,0.1879033]
[1765907612343,0.4455119,87255.0,87254.0,0.17644]
[1765907612344,0.55456208,87255.0,87254.0,0.17644]
[1765907612537,0.60736208,87255.0,87254.0,0.17644]
[1765907612843,0.1790342,87247.0,87246.0,0.1000243]
[1765907613340,0.1790342,87247.0,87246.0,0.1879043]
[1765907614844,0.16757,87247.0,87246.0,0.1879043]
[1765907616040,0.16757,87247.0,87246.0,0.17644]
[1765907616729,0.16757,87247.0,87246.0,0.17844]
[1765907617135,0.16757,87247.0,87246.0,0.17744]
[1765907617843,0.16757,87247.0,87246.0,0.17644]
[1765907618045,0.16857,87247.0,87246.0,0.17644]
[1765907619049,0.16957,87247.0,87246.0,0.17644]
[1765907619452,0.16757,87247.0,87246.0,0.17644]
[1765907619651,0.16757,87247.0,87246.0,0.1879043]
[1765907619853,0.08454,87247.0,87246.0,0.1879043]
[1765907620152,0.5275319,87255.0,87254.0,0.16869]
[1765907620750,0.4411319,87255.0,87254.0,0.16869]
[1765907621051,0.4411319,87255.0,87254.0,0.52949]
[1765907621052,0.0001719,87255.0,87254.0,0.52949]
[1765907621749,0.3608,87266.0,87265.0,0.1801518]
[1765907621750,0.16656,87266.0,87265.0,0.1801518]
[1765907621945,0.0611104,87276.0,87275.0,0.16869]
[1765907621946,0.1780204,87276.0,87275.0,0.16869]
[1765907622152,0.19255826,87276.0,87275.0,0.16869]
[1765907623049,0.19255826,87276.0,87267.0,0.00017193]
[1765907623050,0.16656,87268.0,87267.0,0.00017193]
[1765907623251,0.55333956,87268.0,87267.0,0.00017193]
[1765907623449,0.52736,87268.0,87267.0,0.00017193]
[1765907623638,0.55334022,87268.0,87267.0,0.00017193]
[1765907624250,0.55334022,87268.0,87267.0,0.00217193]
[1765907625253,0.55434022,87268.0,87267.0,0.00217193]
[1765907625659,0.55634022,87268.0,87267.0,0.00017193]
[1765907626257,0.55734022,87268.0,87267.0,0.00017193]
[1765907626650,0.55734022,87268.0,87267.0,0.16886193]
[1765907626852,0.55734022,87268.0,87267.0,0.00017193]
[1765907628659,0.55634022,87268.0,87267.0,0.00017193]
[1765907629049,0.55534022,87268.0,87267.0,0.00017193]
[1765907629253,0.56679132,87268.0,87267.0,0.00017193]
[1765907629862,0.56579132,87268.0,87267.0,0.00017193]
[1765907630160,0.56679132,87268.0,87267.0,0.00017193]
[1765907630561,0.1780239,87249.0,87248.0,0.16869]
[1765907630752,0.16656,87249.0,87248.0,0.16869]
[1765907631653,0.1780246,87244.0,87243.0,0.52949]
[1765907632654,0.1780246,87244.0,87243.0,0.16869]
[1765907632855,0.1780246,87244.0,87243.0,0.17069]
[1765907633063,0.16656,87244.0,87243.0,0.1821547]